[Event "VII Sunway Sitges Open-B 2020"]
[Site "Sitges"]
[Date "2020.12.16"]
[Round "4.1"]
[White "Teply Koutsky, David"]
[Black "Parra Ordorica, Arnau"]
[Result "0-1"]
[ECO "E20"]
[WhiteElo "1739"]
[BlackElo "1796"]
[Annotator "NA RC"]
[PlyCount "160"]
[EventDate "2020.12.13"]
[EventType "swiss"]
[EventCountry "ESP"]
[SourceTitle "playchess.com"]
[Source "ChessBase"]
[SourceQuality "1"]
[TimeControl "40/5400+30:1800+30"]

1. d4 {[%emt 0:04:53]} Nf6 {[%emt 0:00:00]} 2. c4 {[%emt 0:00:27]} e6 {[%emt 0:00:24]} 3. Nc3 {[%emt 0:00:22]} Bb4 {[%emt 0:00:30]} 4. f3 {[%emt 0:01:08]} Nc6 {[%emt 0:01:04]} 5. a3 {[%emt 0:01:39]} Bxc3+ {[%emt 0:00:18]} 6. bxc3 {[%emt 0:00:10]} b6 {[%emt 0:00:43]} 7. e4 {[%emt 0:00:39]} e5 {[%emt 0:01:30]} 8. d5 {[%emt 0:01:27]} Na5 {[%emt 0:00:12]} 9. Bd3 {[%emt 0:01:27]} d6 {[%emt 0:01:26]} 10. Rb1 {[%emt 0:03:46]} Qd7 {[%emt 0:00:42]} 11. c5 dxc5 {[%emt 0:02:29]} 12. Bb5 {[%emt 0:05:48]} c6 {[%emt 0:00:19]} 13. dxc6 {[%emt 0:01:01]} Nxc6 {[%emt 0:00:30]} 14. Bg5 {[%emt 0:01:47]} Bb7 {[%emt 0:02:42]} 15. Bxf6 {[%emt 0:00:46]} gxf6 {[%emt 0:00:38]} 16. Qxd7+ {[%emt 0:01:57]} Kxd7 {[%emt 0:00:10]} 17. Rd1+ {[%emt 0:00:03]} Ke7 {[%emt 0:00:32]} 18. Ne2 {[%emt 0:00:30]} a6 {[%emt 0:01:36]} 19. Bc4 {[%emt 0:01:00]} Rad8 {[%emt 0:01:11]} 20. Kf2 {[%emt 0:00:14]} Na5 {[%emt 0:01:03]} 21. Ba2 {[%emt 0:00:33]} Bc6 {[%emt 0:01:35]} 22. Ng3 {[%emt 0:00:50]} Rhe8 {[%emt 0:02:48]} 23. Nf5+ {[%emt 0:06:37]} Kf8 {[%emt 0:00:28]} 24. Nh6 {[%emt 0:02:23]} Ba4 {[%emt 0:00:31]} 25. Rd5 {[%emt 0:02:54]} c4 26. Bb1 {[%emt 0:03:56]} Rxd5 {[%emt 0:04:06]} 27. exd5 {[%emt 0:00:21]} Nb7 {[%emt 0:01:56]} 28. Ng4 {[%emt 0:02:52]} Kg7 {[%emt 0:02:26]} 29. Ne3 {[%emt 0:00:30]} Bb3 {[%emt 0:01:45]} 30. Nf5+ {[%emt 0:03:11]} Kf8 {[%emt 0:00:38]} 31. Ng3 {[%emt 0:01:52]} Rd8 {[%emt 0:00:31]} 32. Bxh7 {[%emt 0:01:00]} Rxd5 {[%emt 0:00:25]} 33. Be4 {[%emt 0:00:08]} Rd7 {[%emt 0:00:13]} 34. Bxb7 {[%emt 0:16:09]} Rxb7 {[%emt 0:00:04]} 35. Re1 {[%emt 0:00:13]} Rd7 {[%emt 0:04:25]} 36. Ne4 {[%emt 0:02:11]} Kg7 {[%emt 0:01:29]} 37. Ng3 {[%emt 0:02:23]} b5 {[%emt 0:02:12]} 38. Nf1 a5 39. Rc1 {[%emt 0:04:08]} f5 {[%emt 0:02:02]} 40. Re1 {[%emt 0:00:00]} Kf6 {[%emt 0:00:00]} 41. g3 {[%emt 0:07:16]} Rd5 {[%emt 0:07:10]} 42. Re2 Bd1 43. Ne3 {[%emt 0:04:27]} Rd3 {[%emt 0:00:44]} 44. Nxd1 {[%emt 0:00:14]} Rxd1 {[%emt 0:00:04]} 45. Rb2 {[%emt 0:04:00]} Rd5 {[%emt 0:01:03]} 46. Ra2 {[%emt 0:04:15]} Rd3 {[%emt 0:01:01]} 47. Rc2 {[%emt 0:01:19]} Ke6 {[%emt 0:00:27]} 48. a4 {[%emt 0:02:31]} bxa4 {[%emt 0:00:26]} 49. Ra2 {[%emt 0:00:04]} Rxc3 {[%emt 0:00:25]} 50. Rxa4 {[%emt 0:00:04]} e4 {[%emt 0:00:58]} 51. fxe4 {[%emt 0:00:32]} fxe4 {[%emt 0:00:04]} 52. Rxa5 {[%emt 0:00:20]} f5 {[%emt 0:00:51]} 53. h4 {[%emt 0:06:10]} Kf6 {[%emt 0:01:11]} 54. Ra6+ {[%emt 0:04:04]} Ke5 {[%emt 0:00:14]} 55. h5 {[%emt 0:00:41]} f4 {[%emt 0:01:06]} 56. gxf4+ {[%emt 0:04:32]} Kxf4 {[%emt 0:00:07]} 57. h6 {[%emt 0:01:00]} Rh3 {[%emt 0:01:10]} 58. Rc6 {[%emt 0:00:24]} c3 {[%emt 0:02:05]} 59. h7 {[%emt 0:00:52]} c2 {[%emt 0:00:56]} 60. Rxc2 {[%emt 0:00:33]} Rxh7 {[%emt 0:00:14]} 61. Rc8 {[%emt 0:01:34]} Rh2+ {[%emt 0:00:44]} 62. Kf1 {[%emt 0:00:53]} Kf3 {[%emt 0:00:27]} 63. Rf8+ {[%emt 0:00:20]} Ke3 {[%emt 0:00:16]} 64. Re8 {[%emt 0:00:58]} Rh1+ {[%emt 0:01:01]} 65. Kg2 {[%emt 0:00:07]} Re1 {[%emt 0:00:40]} 66. Re7 {[%emt 0:00:39]} Kd2 {[%emt 0:00:38]} 67. Rd7+ {[%emt 0:00:23]} Ke2 {[%emt 0:00:31]} 68. Re7 {[%emt 0:01:48]} e3 {[%emt 0:00:22]} 69. Re8 {[%emt 0:00:22]} Rd1 {[%emt 0:00:14]} 70. Re7 {[%emt 0:04:33]} Rd6 {[%emt 0:00:25]} 71. Re8 {[%emt 0:02:17]} Rg6+ {[%emt 0:00:07]} 72. Kh2 {[%emt 0:00:39]} Kd2 {[%emt 0:00:08]} 73. Rd8+ {[%emt 0:01:11]} Ke1 {[%emt 0:00:02]} 74. Re8 {[%emt 0:00:36]} e2 {[%emt 0:00:21]} 75. Re7 {[%emt 0:01:03]} Rg5 {[%emt 0:00:20]} 76. Re8 {[%emt 0:01:11]} Kd2 {[%emt 0:00:12]} 77. Rd8+ {[%emt 0:00:41]} Ke3 {[%emt 0:00:11]} 78. Re8+ {[%emt 0:00:08]} Kd3 {[%emt 0:00:57]} 79. Rd8+ {[%emt 0:00:22]} Ke4 {[%emt 0:00:08]} 80. Re8+ {[%emt 0:01:49]} Re5 {[%emt 0:00:03]} 0-1

[Event "VII Sunway Sitges Open-B 2020"]
[Site "Sitges"]
[Date "2020.12.16"]
[Round "4.2"]
[White "Abreu Sanchez, Leonel Jesus"]
[Black "Sierra Magrazo, Lidia"]
[Result "1-0"]
[ECO "A09"]
[WhiteElo "1688"]
[BlackElo "1459"]
[Annotator "NA RC"]
[PlyCount "81"]
[EventDate "2020.12.13"]
[EventType "swiss"]
[EventCountry "ESP"]
[SourceTitle "playchess.com"]
[Source "ChessBase"]
[SourceQuality "1"]
[TimeControl "40/5400+30:1800+30"]

1. Nf3 {[%emt 0:05:41]} d5 {[%emt 0:01:04]} 2. c4 {[%emt 0:02:20]} d4 {[%emt 0:00:55]} 3. e3 {[%emt 0:01:15]} c5 {[%emt 0:03:36]} 4. b4 {[%emt 0:03:11]} dxe3 {[%emt 0:04:00]} 5. fxe3 {[%emt 0:00:44]} cxb4 {[%emt 0:03:50]} 6. d4 {[%emt 0:01:59]} Nf6 {[%emt 0:01:09]} 7. Be2 {[%emt 0:02:56]} Bg4 {[%emt 0:03:58]} 8. O-O {[%emt 0:00:31]} e6 {[%emt 0:01:00]} 9. a3 {[%emt 0:12:17]} Nc6 {[%emt 0:07:55]} 10. Bd2 {[%emt 0:09:54]} Be7 {[%emt 0:07:04]} 11. axb4 {[%emt 0:03:42]} Bxb4 {[%emt 0:01:32]} 12. Bxb4 {[%emt 0:07:31]} Nxb4 {[%emt 0:00:26]} 13. Qa4+ {[%emt 0:00:32]} Nc6 {[%emt 0:00:25]} 14. d5 {[%emt 0:14:28]} exd5 {[%emt 0:05:12]} 15. cxd5 {[%emt 0:05:43]} Qxd5 {[%emt 0:03:15]} 16. Bc4 {[%emt 0:01:17]} Qe4 {[%emt 0:05:35]} 17. Bxf7+ {[%emt 0:01:14]} Kd8 {[%emt 0:03:45]} 18. Qb3 {[%emt 0:02:03]} Qb4 {[%emt 0:06:34]} 19. Qc2 Qe4 {[%emt 0:03:19]} 20. Qc5 {[%emt 0:08:54]} Qb4 {[%emt 0:02:22]} 21. Qg5 {[%emt 0:02:06]} Qf8 {[%emt 0:05:25]} 22. Bc4 {[%emt 0:01:49]} Qe7 {[%emt 0:03:50]} 23. Nbd2 {[%emt 0:06:12]} Re8 {[%emt 0:03:34]} 24. Rfe1 {[%emt 0:01:18]} Kc7 {[%emt 0:04:16]} 25. Rac1 {[%emt 0:01:02]} Rad8 {[%emt 0:06:01]} 26. Bb5 {[%emt 0:00:51]} Rd5 {[%emt 0:04:01]} 27. Qf4+ {[%emt 0:00:06]} Qd6 {[%emt 0:00:42]} 28. Qa4 {[%emt 0:00:17]} Rc5 {[%emt 0:05:39]} 29. Nb3 {[%emt 0:02:08]} Rh5 {[%emt 0:01:15]} 30. Bxc6 bxc6 {[%emt 0:01:47]} 31. Qxa7+ {[%emt 0:01:12]} Kd8 {[%emt 0:00:34]} 32. Red1 {[%emt 0:00:17]} Nd5 {[%emt 0:00:22]} 33. Nbd4 {[%emt 0:00:26]} Bd7 {[%emt 0:00:55]} 34. h3 {[%emt 0:01:57]} Rh6 {[%emt 0:00:37]} 35. Ng5 {[%emt 0:00:35]} Rf8 {[%emt 0:00:46]} 36. e4 {[%emt 0:00:23]} Qf4 37. exd5 {[%emt 0:00:39]} Qf2+ {[%emt 0:01:18]} 38. Kh1 {[%emt 0:00:13]} Ke7 {[%emt 0:00:31]} 39. dxc6 {[%emt 0:00:53]} Rd6 {[%emt 0:00:22]} 40. cxd7 {[%emt 0:00:00]} Rxd7 {[%emt 0:00:00]} 41. Nc6+ {[%emt 0:01:24]} 1-0

[Event "VII Sunway Sitges Open-B 2020"]
[Site "Sitges"]
[Date "2020.12.16"]
[Round "4.3"]
[White "Molina Tabernero, Jordi"]
[Black "Bangerter, Daria"]
[Result "0-1"]
[ECO "A45"]
[WhiteElo "1436"]
[BlackElo "1656"]
[Annotator "NA RC"]
[PlyCount "100"]
[EventDate "2020.12.13"]
[EventType "swiss"]
[EventCountry "ESP"]
[SourceTitle "playchess.com"]
[Source "ChessBase"]
[SourceQuality "1"]
[TimeControl "40/5400+30:1800+30"]

1. d4 Nf6 2. Bf4 c5 3. e3 Qb6 4. dxc5 Qxb2 5. Nd2 Qc3 6. Bd3 Nc6 7. Ne2 Qxc5 8. Nb3 Qb6 9. a3 e5 10. Bg5 Bxa3 11. Bxf6 gxf6 12. O-O Be7 13. Ng3 d6 14. Nh5 Be6 15. Ng7+ Kd7 16. Nxe6 fxe6 17. Rb1 Nb4 18. Nd2 Qa5 19. Nc4 Qa4 20. Ra1 Qc6 21. Na5 Qc7 22. Bb5+ Nc6 23. Qf3 a6 24. Nxc6 axb5 25. Nxe7 Kxe7 26. Qe2 Qc4 27. Qd2 Qd5 28. Qb4 Rhg8 29. g3 Qc4 30. Qd2 Rgc8 31. Rad1 d5 32. Rc1 Ra2 33. Qd3 e4 34. Qxc4 Rxc4 35. c3 Ra3 36. Rb1 Rc5 37. Rfc1 Kd6 38. Kg2 Kc6 39. Ra1 Rxa1 40. Rxa1 Rxc3 41. Ra8 Kb6 42. Re8 Rc6 43. Ra8 b4 44. Ra1 b3 45. Rb1 Rc3 46. Kf1 Ka5 47. Ke1 Rd3 48. Ke2 Kb4 49. Rc1 b2 50. Rc7 b5 0-1

[Event "VII Sunway Sitges Open-B 2020"]
[Site "Sitges"]
[Date "2020.12.16"]
[Round "4.4"]
[White "Martinez Ayala, Pol"]
[Black "Uber Gracia, Hugo"]
[Result "0-1"]
[ECO "C00"]
[WhiteElo "1120"]
[BlackElo "1575"]
[Annotator "NA"]
[PlyCount "106"]
[EventDate "2020.12.13"]
[EventType "swiss"]
[EventCountry "ESP"]
[SourceTitle "playchess.com"]
[Source "ChessBase"]
[SourceQuality "1"]
[TimeControl "40/5400+30:1800+30"]

1. e4 {[%emt 0:02:19]} e6 {[%emt 0:00:00]} 2. d3 {[%emt 0:00:14]} d5 {[%emt 0:00:00]} 3. Nd2 {[%emt 0:00:13]} dxe4 {[%emt 0:00:00]} 4. dxe4 {[%emt 0:02:19]} b6 {[%emt 0:00:00]} 5. Ngf3 {[%emt 0:02:08]} Bb7 {[%emt 0:01:00]} 6. b3 {[%emt 0:02:06]} Nd7 {[%emt 0:01:28]} 7. Bb2 {[%emt 0:07:22]} Nc5 {[%emt 0:13:07]} 8. Qe2 {[%emt 0:03:47]} Nf6 {[%emt 0:07:13]} 9. e5 {[%emt 0:04:00]} Nd5 {[%emt 0:01:33]} 10. c4 {[%emt 0:15:42]} Nb4 {[%emt 0:03:31]} 11. Qd1 {[%emt 0:00:23]} Ncd3+ {[%emt 0:01:20]} 12. Bxd3 {[%emt 0:05:53]} Nxd3+ {[%emt 0:00:45]} 13. Ke2 {[%emt 0:00:15]} Nxb2 {[%emt 0:03:42]} 14. Qc2 {[%emt 0:00:50]} Bxf3+ {[%emt 0:01:48]} 15. Nxf3 {[%emt 0:08:34]} Ba3 {[%emt 0:02:24]} 16. Rhe1 {[%emt 0:05:06]} Qd7 {[%emt 0:00:49]} 17. g3 {[%emt 0:01:44]} O-O-O {[%emt 0:03:09]} 18. h4 {[%emt 0:01:48]} Qd3+ {[%emt 0:00:08]} 19. Qxd3 {[%emt 0:00:10]} Nxd3 {[%emt 0:04:34]} 20. Red1 {[%emt 0:01:26]} Nb4 {[%emt 0:01:04]} 21. Rxd8+ {[%emt 0:00:21]} Rxd8 {[%emt 0:01:16]} 22. Ng5 {[%emt 0:02:29]} h6 {[%emt 0:01:12]} 23. Ne4 {[%emt 0:03:12]} Bb2 {[%emt 0:00:52]} 24. Rb1 {[%emt 0:06:46]} Bxe5 {[%emt 0:02:42]} 25. Ke3 {[%emt 0:01:00]} Nxa2 {[%emt 0:00:39]} 26. f4 {[%emt 0:00:25]} Bd4+ {[%emt 0:05:07]} 27. Kf3 {[%emt 0:04:11]} Kb7 {[%emt 0:02:14]} 28. g4 Nc3 {[%emt 0:00:10]} 29. Nxc3 {[%emt 0:02:20]} Bxc3 30. g5 {[%emt 0:00:10]} hxg5 {[%emt 0:01:28]} 31. fxg5 {[%emt 0:00:30]} e5 {[%emt 0:00:33]} 32. h5 {[%emt 0:02:22]} Bd2 {[%emt 0:02:29]} 33. Kg4 {[%emt 0:01:10]} e4 34. Rf1 e3 {[%emt 0:01:28]} 35. Kf3 {[%emt 0:00:38]} Re8 {[%emt 0:00:07]} 36. Ke2 {[%emt 0:00:33]} Re5 {[%emt 0:03:05]} 37. Rg1 {[%emt 0:00:43]} Rf5 {[%emt 0:00:44]} 38. h6 {[%emt 0:00:18]} gxh6 {[%emt 0:00:05]} 39. gxh6 {[%emt 0:00:00]} Rh5 40. Rg7 {[%emt 0:00:00]} Rxh6 {[%emt 0:00:00]} 41. Rxf7 Rh1 42. Rf6 {[%emt 0:02:10]} Rb1 {[%emt 0:06:10]} 43. Rf4 Rxb3 44. Rf1 {[%emt 0:00:56]} a5 {[%emt 0:00:39]} 45. Rf4 {[%emt 0:00:31]} a4 {[%emt 0:00:12]} 46. c5 {[%emt 0:00:38]} b5 {[%emt 0:00:07]} 47. Rf1 {[%emt 0:00:30]} a3 {[%emt 0:00:30]} 48. Ra1 {[%emt 0:01:26]} b4 {[%emt 0:00:30]} 49. Ra2 {[%emt 0:00:30]} Rb2 {[%emt 0:00:00]} 50. Ra1 {[%emt 0:00:31]} a2 {[%emt 0:00:00]} 51. Kd3 {[%emt 0:00:17]} b3 {[%emt 0:00:03]} 52. Ke2 {[%emt 0:00:21]} Rb1 {[%emt 0:00:18]} 53. c6+ {[%emt 0:00:30]} Kxc6 {[%emt 0:00:30]} 0-1